fUSD/lending_fUSD_20240222
["ID","MTS","AMOUNT","RATE_DAILY","PERIOD"]
[314901907,1708625547282,-500.0,0.00034246,4]
[314901908,1708625547292,-500.0,0.00034246,4]
[314901909,1708625547302,-342.952453,0.00034246,4]
[314901910,1708625547311,-500.0,0.00034246,4]
[314901911,1708625547321,-804.18,0.00034246,4]
[314901912,1708625547330,-535.66,0.00034246,4]
[314901913,1708625547340,-936.27,0.00034246,4]
[314901914,1708625547350,-500.0,0.00034246,4]
[314901915,1708625547359,-573.6,0.00034246,4]
[314901916,1708625547369,-182.20837423,0.00034246,4]
[314901917,1708625547378,-573.73,0.00034246,4]
[314901918,1708625547388,-906.98,0.00034246,4]
[314901919,1708625547397,-625.48,0.00034246,4]
[314901920,1708625547407,-619.25,0.00034246,4]
[314901921,1708625547417,-802.24,0.00034246,4]
[314901922,1708625547427,-553.85,0.00034246,4]
[314901923,1708625547437,-951.64,0.00034246,4]
[314901924,1708625547446,-500.0,0.00034246,4]
[314901925,1708625547456,-694.67,0.00034246,4]
[314901926,1708625547465,-991.06,0.00034246,4]
[314901927,1708625547475,-676.95,0.00034246,4]
[314901928,1708625547484,-500.0,0.00034246,4]
[314901929,1708625547494,-764.63,0.00034246,4]
[314901930,1708625547503,-508.78,0.00034246,4]
[314901931,1708625547512,-500.0,0.00034246,4]
[314901932,1708625547521,-802.5,0.00034246,4]
[314901933,1708625547530,-664.95,0.00034246,4]
[314901934,1708625547540,-692.13,0.00034246,4]
[314901935,1708625547549,-632.57,0.00034246,4]
[314901936,1708625547558,-509.92,0.00034246,4]
[314901937,1708625547567,-500.0,0.00034246,4]
[314901938,1708625547576,-607.02,0.00034246,4]
[314901939,1708625547586,-792.22,0.00034246,4]
[314901940,1708625547596,-500.0,0.00034246,4]
[314901941,1708625547605,-1057.84,0.00034246,4]
[314901942,1708625547615,-500.0,0.00034246,4]
[314901943,1708625547625,-967.9,0.00034246,4]
[314901944,1708625547635,-1015.71,0.00034246,4]
[314901945,1708625547644,-500.0,0.00034246,4]
[314901946,1708625547654,-500.0,0.00034246,4]
[314901947,1708625547663,-500.0,0.00034246,4]
[314901948,1708625547672,-1057.91,0.00034246,4]
[314901949,1708625547682,-581.1667868,0.00034246,2]
[314901950,1708625547691,-1562.84,0.00034246,4]
[314901951,1708625547700,-908.7,0.00034246,4]
[314901952,1708625547710,-574.22,0.00034246,4]
[314901953,1708625547719,-1195.95,0.00034246,4]
[314901954,1708625547730,-711.8,0.00034246,4]
[314901955,1708625547739,-500.0,0.00034246,4]
[314901956,1708625547749,-690.36,0.00034246,4]
[314901957,1708625547758,-582.2,0.00034246,4]
[314901958,1708625547767,-623.27,0.00034246,4]
[314901959,1708625547777,-643.93,0.00034246,4]
[314901960,1708625547786,-808.11,0.00034246,4]
[314901961,1708625547795,-500.0,0.00034246,4]
[314901962,1708625547805,-955.15,0.00034246,4]
[314901963,1708625547814,-500.0,0.00034246,2]
[314901964,1708625547824,-520.41,0.00034246,4]
[314901965,1708625547833,-500.0,0.00034246,4]
[314901966,1708625547842,-642.76,0.00034246,4]
[314901967,1708625547852,-500.0,0.00034246,4]
[314901968,1708625547861,-500.0,0.00034246,4]
[314901969,1708625547870,-500.0,0.00034246,4]
[314901970,1708625547881,-814.72,0.00034246,4]
[314901971,1708625547896,-763.81,0.00034246,4]
[314901972,1708625547905,-269.49121608,0.00034246,4]
[314901973,1708625547915,-595.79,0.00034246,4]
[314901974,1708625547924,-920.28,0.00034246,4]
[314901975,1708625547934,-616.74,0.00034246,4]
[314901976,1708625547943,-704.13,0.00034246,4]
[314901977,1708625547954,-693.29,0.00034246,4]
[314901978,1708625547969,-500.0,0.00034246,4]
[314901979,1708625547982,-970.8,0.00034246,4]
[314901980,1708625547993,-523.23,0.00034246,4]
[314901981,1708625548002,-569.97,0.00034246,4]
[314901982,1708625548012,-552.1,0.00034246,4]
[314901983,1708625548022,-546.34,0.00034246,4]
[314901984,1708625548031,-500.0,0.00034246,4]
[314901985,1708625548041,-597.14,0.00034246,4]
[314901986,1708625548051,-936.39,0.00034246,4]
[314901987,1708625548061,-500.0,0.00034246,4]
[314901988,1708625548072,-500.0,0.00034246,4]
[314901989,1708625548083,-500.0,0.00034246,4]
[314901990,1708625548093,-1000.0,0.00034246,7]
[314901991,1708625548104,-1322.67,0.00034246,4]
[314901992,1708625548113,-513.58,0.00034246,4]
[314901993,1708625548124,-500.0,0.00034246,4]
[314901994,1708625548134,-500.0,0.00034246,4]
[314901995,1708625548147,-500.0,0.00034246,4]
[314901996,1708625548157,-652.66,0.00034246,4]
[314901997,1708625548167,-620.0,0.00034246,4]
[314901998,1708625548177,-905.48,0.00034246,4]
[314901999,1708625548187,-500.0,0.00034246,4]
[314902000,1708625548197,-902.91,0.00034246,4]
[314902001,1708625548207,-500.0,0.00034246,4]
[314902002,1708625548218,-577.69,0.00034246,4]
[314902003,1708625548233,-500.0,0.00034246,4]
[314902004,1708625548243,-1566.96,0.00034246,4]
[314902005,1708625548254,-500.0,0.00034246,4]
[314902006,1708625548266,-885.89,0.00034246,4]
[314902007,1708625548277,-567.92,0.00034246,4]
[314902008,1708625548287,-642.58,0.00034246,4]
[314902009,1708625548300,-851.67,0.00034246,4]
[314902010,1708625548310,-500.0,0.00034246,2]
[314902011,1708625548321,-572.75,0.00034246,4]
[314902012,1708625548332,-583.46,0.00034246,4]
[314902013,1708625548342,-1131.89,0.00034246,4]
[314902014,1708625548353,-500.0,0.00034246,4]
[314902015,1708625548363,-500.0,0.00034246,4]
[314902016,1708625548374,-568.65,0.00034246,4]
[314902017,1708625548388,-500.0,0.00034246,4]
[314902018,1708625548399,-1313.43,0.00034246,4]
[314902019,1708625548411,-3828.9,0.00034246,4]
[314902020,1708625548422,-1312.47,0.00034246,4]
[314902021,1708625548432,-500.0,0.00034246,4]
[314902022,1708625548443,-637.56,0.00034246,4]
[314902023,1708625548453,-500.0,0.00034246,4]
[314902024,1708625548463,-771.01,0.00034246,4]
[314902025,1708625548478,-670.32,0.00034246,4]
[314902026,1708625548489,-905.48,0.00034246,4]
[314902027,1708625548500,-587.38,0.00034246,4]
[314902028,1708625548510,-500.0,0.00034246,4]
[314902029,1708625548520,-500.0,0.00034246,4]
[314902030,1708625548530,-500.0,0.00034246,4]
[314902031,1708625548539,-500.0,0.00034246,4]
[314902032,1708625548549,-500.0,0.00034246,4]
[314902033,1708625548560,-500.0,0.00034246,4]
[314902034,1708625548570,-500.0,0.00034246,4]
[314902035,1708625548580,-1115.25,0.00034246,4]
[314902036,1708625548590,-500.0,0.00034246,4]
[314902037,1708625548600,-617.27,0.00034246,4]
[314902038,1708625548610,-621.03222356,0.00034246,4]
[314902039,1708625548620,-1239.94,0.00034246,4]
[314902040,1708625548630,-920.63,0.00034246,4]
[314902041,1708625548639,-1030.29,0.00034246,4]
[314902042,1708625548649,-500.0,0.00034246,4]
[314902043,1708625548659,-500.0,0.00034246,4]
[314902044,1708625548668,-799.98,0.00034246,4]
[314902045,1708625548678,-728.76,0.00034246,4]
[314902046,1708625548687,-500.0,0.00034246,4]
[314902047,1708625548697,-741.55,0.00034246,4]
[314902048,1708625548707,-617.56,0.00034246,4]
[314902049,1708625548716,-664.22,0.00034246,4]
[314902050,1708625548730,-582.0,0.00034246,4]
[314902051,1708625548739,-500.0,0.00034246,4]
[314902052,1708625548748,-541.78,0.00034246,4]
[314902053,1708625548758,-764.35,0.00034246,4]
[314902054,1708625548768,-500.0,0.00034246,4]
[314902055,1708625548778,-1242.24,0.00034246,4]
[314902056,1708625548788,-1041.1,0.00034246,4]
[314902057,1708625548798,-500.0,0.00034246,4]
[314902058,1708625548808,-1494.6,0.00034246,4]
[314902059,1708625548818,-500.0,0.00034246,4]
[314902060,1708625548828,-500.0,0.00034246,4]
[314902061,1708625548838,-983.44,0.00034246,4]
[314902062,1708625548847,-871.52,0.00034246,4]
[314902063,1708625548856,-500.0,0.00034246,4]
[314902064,1708625548866,-937.84,0.00034246,4]
[314902065,1708625548876,-500.0,0.00034246,4]
[314902066,1708625548886,-940.94,0.00034246,4]
[314902067,1708625548899,-167.36943294,0.00034246,4]
[314902068,1708625548909,-500.0,0.00034246,4]
[314902069,1708625548918,-900.68,0.00034246,4]
[314902070,1708625548927,-988.42,0.00034246,4]
[314902071,1708625548938,-1267.73,0.00034246,4]
[314902072,1708625548947,-598.66,0.00034246,4]
[314902073,1708625548957,-1407.88,0.00034246,4]
[314902074,1708625548968,-500.0,0.00034246,4]
[314902075,1708625548980,-500.0,0.00034246,4]
[314902076,1708625548990,-1015.51,0.00034246,4]
[314902077,1708625549000,-500.0,0.00034246,4]
[314902078,1708625549009,-500.0,0.00034246,4]
[314902079,1708625549019,-824.67,0.00034246,4]
[314902080,1708625549028,-1044.83,0.00034246,4]
[314902081,1708625549038,-625.15,0.00034246,4]
[314902082,1708625549047,-848.25,0.00034246,4]
[314902083,1708625549057,-715.27,0.00034246,4]
[314902084,1708625549067,-500.0,0.00034246,4]
[314902085,1708625549076,-500.0,0.00034246,4]
[314902086,1708625549085,-500.0,0.00034246,4]
[314902087,1708625549095,-979.83,0.00034246,4]
[314902088,1708625549105,-500.0,0.00034246,4]
[314902089,1708625549115,-1292.8,0.00034246,4]
[314902090,1708625549124,-651.21,0.00034246,4]
[314902091,1708625549134,-709.91,0.00034246,4]
[314902092,1708625549143,-579.59,0.00034246,4]
[314902093,1708625549153,-1259.45,0.00034246,4]
[314902094,1708625549162,-695.7,0.00034246,4]
[314902095,1708625549171,-972.69,0.00034246,4]
[314902096,1708625549181,-500.0,0.00034246,4]
[314902097,1708625549190,-500.0,0.00034246,4]
[314902098,1708625549200,-1106.66,0.00034246,4]
[314902099,1708625549209,-500.0,0.00034246,4]
[314902100,1708625549218,-1263.76,0.00034246,4]
[314902101,1708625549230,-500.0,0.00034246,4]
[314902102,1708625549240,-1595.37,0.00034246,4]
[314902103,1708625549250,-535.25,0.00034246,4]
[314902104,1708625549260,-1321.09,0.00034246,4]
[314902105,1708625549270,-500.0,0.00034246,4]
[314902106,1708625549430,-841.52,0.00034246,4]
[314902107,1708625549441,-593.4,0.00034246,4]
[314902108,1708625549451,-1083.33,0.00034246,4]
[314902109,1708625549462,-1312.31,0.00034246,4]
[314902110,1708625549474,-1322.97,0.00034246,4]
[314902111,1708625549484,-6861.46,0.00034246,4]
[314902112,1708625549493,-500.0,0.00034246,4]
[314902113,1708625549503,-7508.74,0.00034246,4]
[314902114,1708625549513,-500.0,0.00034246,4]
[314902115,1708625549523,-2188.57,0.00034246,4]
[314902116,1708625549532,-500.0,0.00034246,4]
[314902117,1708625549542,-640.5,0.00034246,4]
[314902118,1708625549551,-1556.17,0.00034246,2]
[314902119,1708625549561,-1521.19,0.00034246,4]
[314902120,1708625549571,-931.24,0.00034246,4]
[314902121,1708625549580,-1367.32,0.00034246,4]
[314902122,1708625549590,-579.67,0.00034246,4]
[314902123,1708625549599,-310.86204741,0.00034246,4]
[314902124,1708625549609,-500.0,0.00034246,4]
[314902125,1708625549619,-500.0,0.00034246,4]
[314902126,1708625549629,-3289.02,0.00034246,4]
[314902127,1708625549640,-1435.75,0.00034246,4]
[314902128,1708625549650,-670.88,0.00034246,4]
[314902129,1708625549660,-7764.94,0.00034246,4]
[314902130,1708625549670,-1463.74,0.00034246,4]
[314902131,1708625549679,-500.0,0.00034246,4]
[314902132,1708625549689,-500.0,0.00034246,4]
[314902133,1708625549698,-500.0,0.00034246,4]
[314902134,1708625549708,-500.0,0.00034246,4]
[314902135,1708625549718,-2618.09,0.00034246,4]
[314902136,1708625549728,-905.05,0.00034246,4]
[314902137,1708625549738,-1754.26,0.00034246,4]
[314902138,1708625549747,-571.38,0.00034246,4]
[314902139,1708625549757,-1224.57,0.00034246,4]
[314902140,1708625549767,-1412.23,0.00034246,4]
[314902141,1708625549777,-1295.05,0.00034246,4]
[314902142,1708625549786,-2025.9,0.00034246,4]
[314902143,1708625549796,-734.04,0.00034246,4]
[314902144,1708625549805,-16810.08,0.00034246,4]
[314902145,1708625549814,-3953.01,0.00034246,4]
[314902146,1708625549824,-500.0,0.00034246,4]
[314902147,1708625549833,-1357.88,0.00034246,4]
[314902148,1708625549843,-500.0,0.00034246,4]
[314902149,1708625549852,-523.91,0.00034246,4]
[314902150,1708625549862,-511.36,0.00034246,4]
[314902151,1708625549871,-500.0,0.00034246,4]
[314902152,1708625549881,-500.0,0.00034246,4]
[314902153,1708625549893,-1306.91,0.00034246,4]
[314902154,1708625549902,-1319.7,0.00034246,4]
[314902155,1708625549911,-2921.05,0.00034246,4]
[314902156,1708625549920,-3520.12,0.00034246,4]
[314902157,1708625549930,-1203.69,0.00034246,4]
[314902158,1708625549939,-4012.02,0.00034246,4]
[314902159,1708625549949,-7422.46,0.00034246,4]
[314902160,1708625549959,-2325.63,0.00034246,4]
[314902161,1708625549969,-595.22,0.00034246,4]
[314902162,1708625549981,-500.0,0.00034246,4]
[314902163,1708625549990,-578.71,0.00034246,4]
[314902164,1708625549999,-896.84,0.00034246,4]
[314902165,1708625550009,-500.0,0.00034246,4]
[314902166,1708625550018,-500.0,0.00034246,4]
[314902167,1708625550028,-579.72,0.00034246,4]
[314902168,1708625550038,-802.17,0.00034246,4]
[314902169,1708625550047,-999.86,0.00034246,4]
[314902170,1708625550057,-2641.23,0.00034246,4]
[314902171,1708625550066,-3363.68,0.00034246,4]
[314902172,1708625550075,-500.0,0.00034246,4]
[314902173,1708625550085,-2799.21,0.00034246,4]
[314902174,1708625550094,-500.0,0.00034246,4]
[314902175,1708625550103,-500.0,0.00034246,4]
[314902176,1708625550113,-174.06256531,0.00034246,4]
[314902177,1708625550122,-522.87,0.00034246,4]
[314902178,1708625550132,-879.41,0.00034246,4]
[314902179,1708625550142,-922.6,0.00034246,4]
[314902180,1708625550151,-7827.29,0.00034246,4]
[314902181,1708625550161,-1225.83,0.00034246,4]
[314902182,1708625550171,-708.41,0.00034246,4]
[314902183,1708625550180,-4523.83,0.00034246,4]
[314902184,1708625550189,-1375.3,0.00034246,4]
[314902185,1708625550199,-4862.62,0.00034246,4]
[314902186,1708625550208,-735.21,0.00034246,4]
[314902187,1708625550218,-757.98,0.00034246,4]
[314902188,1708625550228,-346.61,0.00034246,4]
[314902189,1708625550238,-500.0,0.00034246,4]
[314902190,1708625550248,-3270.53,0.00034246,4]
[314902191,1708625550258,-876.68,0.00034246,4]
[314902192,1708625550267,-3006.31,0.00034246,4]
[314902193,1708625550277,-2130.22,0.00034246,4]
[314902194,1708625550286,-5087.25,0.00034246,4]
[314902195,1708625550295,-869.35,0.00034246,4]
[314902196,1708625550305,-572.62387944,0.00034246,4]
[314902197,1708625550314,-500.0,0.00034246,4]
[314902198,1708625550323,-1701.19,0.00034246,4]
[314902199,1708625550332,-1542.31,0.00034246,4]
[314902200,1708625550342,-1144.38,0.00034246,4]
[314902201,1708625550351,-10191.48,0.00034246,4]
[314902202,1708625550361,-14297.7,0.00034246,4]
[314902203,1708625550370,-870.84,0.00034246,4]
[314902204,1708625550380,-1739.37,0.00034246,4]
[314902205,1708625550390,-500.0,0.00034246,4]
[314902206,1708625550400,-1219.49,0.00034246,4]
[314902207,1708625550411,-500.0,0.00034246,4]
[314902208,1708625550445,-373.27220554,0.00034246,4]
[314902209,1708625550454,-662.36,0.00034246,4]
[314902210,1708625550464,-5320.7,0.00034246,4]
[314902211,1708625550473,-1389.1,0.00034246,4]
[314902212,1708625550484,-1178.0,0.00034246,4]
[314902213,1708625550495,-500.0,0.00034246,4]
[314902214,1708625550504,-4535.27,0.00034246,4]
[314902215,1708625550514,-1510.56,0.00034246,4]
[314902216,1708625550523,-574.08,0.00034246,4]
[314902217,1708625550532,-913.43,0.00034246,4]
[314902218,1708625550542,-957.57,0.00034246,4]
[314902219,1708625550552,-1132.71,0.00034246,4]
[314902220,1708625550562,-1840.14,0.00034246,4]
[314902221,1708625550571,-500.0,0.00034246,4]
[314902222,1708625550580,-500.0,0.00034246,4]
[314902223,1708625550589,-1105.16,0.00034246,4]
[314902224,1708625550599,-8688.16,0.00034246,4]
[314902225,1708625550609,-856.33,0.00034246,4]
[314902226,1708625550618,-1035.38,0.00034246,4]
[314902227,1708625550629,-500.0,0.00034246,4]
[314902228,1708625550638,-597.54,0.00034246,4]
[314902229,1708625550648,-1031.07,0.00034246,4]
[314902230,1708625550658,-500.0,0.00034246,4]
[314902231,1708625550668,-607.73,0.00034246,4]
[314902232,1708625550677,-4152.62,0.00034246,4]
[314902233,1708625550686,-4573.59,0.00034246,4]
[314902234,1708625550695,-5220.29,0.00034246,4]
[314902235,1708625550705,-1750.52,0.00034246,4]
[314902236,1708625550714,-500.0,0.00034246,4]
[314902237,1708625550726,-740.42,0.00034246,4]
[314902238,1708625550736,-543.8,0.00034246,4]
[314902239,1708625550746,-579.71,0.00034246,4]
[314902240,1708625550755,-27929.76,0.00034246,4]
[314902241,1708625550765,-500.0,0.00034246,4]
[314902242,1708625550775,-769.4,0.00034246,4]
[314902243,1708625550784,-500.0,0.00034246,4]
[314902244,1708625550793,-500.0,0.00034246,4]
[314902245,1708625550803,-3104.43,0.00034246,4]
[314902246,1708625550812,-763.62,0.00034246,4]
[314902247,1708625550822,-31733.49,0.00034246,4]
[314902248,1708625550832,-2557.13,0.00034246,4]
[314902249,1708625550841,-635.4,0.00034246,4]
[314902250,1708625550850,-2617.91,0.00034246,4]
[314902251,1708625550860,-10076.31,0.00034246,4]
[314902252,1708625550870,-1402.56,0.00034246,4]
[314902253,1708625550880,-500.0,0.00034246,4]
[314902254,1708625550891,-719.16,0.00034246,4]
[314902255,1708625550901,-549.71,0.00034246,4]
[314902256,1708625550910,-815.24,0.00034246,4]
[314902257,1708625550920,-540.22,0.00034246,4]
[314902258,1708625550930,-10365.29,0.00034246,4]
[314902259,1708625550939,-1908.5,0.00034246,4]
[314902260,1708625550949,-500.0,0.00034246,4]
[314902261,1708625550959,-4645.8,0.00034246,4]
[314902262,1708625550969,-1930.81,0.00034246,4]
[314902263,1708625550980,-1831.86,0.00034246,4]
[314902264,1708625550989,-1019.93,0.00034246,4]
[314902265,1708625550999,-500.0,0.00034246,4]
[314902266,1708625551009,-831.39,0.00034246,4]
[314902267,1708625551018,-1113.04,0.00034246,4]
[314902268,1708625551028,-2272.34,0.00034246,4]
[314902269,1708625551037,-703.63,0.00034246,4]
[314902270,1708625551047,-19048.88,0.00034246,4]
[314902271,1708625551058,-899.16,0.00034246,4]
[314902272,1708625551067,-1790.32,0.00034246,4]
[314902273,1708625551076,-3342.93,0.00034246,4]
[314902274,1708625551085,-6652.12,0.00034246,4]
[314902275,1708625551095,-1083.4,0.00034246,4]
[314902276,1708625551105,-500.0,0.00034246,4]
[314902277,1708625551114,-3448.92,0.00034246,4]
[314902278,1708625551124,-500.0,0.00034246,4]
[314902279,1708625551133,-500.0,0.00034246,4]
[314902280,1708625551143,-612.06,0.00034246,4]
[314902281,1708625551152,-566.02,0.00034246,4]
[314902282,1708625551161,-2397.11,0.00034246,4]
[314902283,1708625551170,-588.46,0.00034246,4]
[314902284,1708625551179,-668.81,0.00034246,4]
[314902285,1708625551189,-504.65,0.00034246,4]
[314902286,1708625551198,-890.14,0.00034246,4]
[314902287,1708625551208,-1569.54,0.00034246,4]
[314902288,1708625551218,-2839.46,0.00034246,4]
[314902289,1708625551228,-500.0,0.00034246,4]
[314902290,1708625551237,-1599.27,0.00034246,4]
[314902291,1708625551247,-12262.15,0.00034246,4]
[314902292,1708625551257,-500.0,0.00034246,4]
[314902293,1708625551266,-603.26,0.00034246,4]
[314902294,1708625551275,-4428.36,0.00034246,4]
[314902295,1708625551285,-684.48,0.00034246,4]
[314902296,1708625551295,-500.0,0.00034246,4]
[314902297,1708625551305,-2710.14,0.00034246,4]
[314902298,1708625551315,-11511.86,0.00034246,4]
[314902299,1708625551324,-13857.62,0.00034246,4]
[314902300,1708625551334,-1092.92,0.00034246,4]
[314902301,1708625551343,-500.0,0.00034246,4]
[314902302,1708625551352,-1594.69,0.00034246,4]
[314902303,1708625551362,-500.0,0.00034246,4]
[314902304,1708625551372,-935.58,0.00034246,4]
[314902305,1708625551680,-543.61,0.00034246,4]
[314902306,1708625551697,-787.78,0.00034246,4]
[314902307,1708625551706,-500.0,0.00034246,4]
[314902308,1708625551715,-500.0,0.00034246,4]
[314902309,1708625551726,-587.54822035,0.00034246,4]
[314902310,1708625551735,-952.32,0.00034246,4]
[314902311,1708625551745,-12927.16,0.00034246,4]
[314902312,1708625551754,-15657.06,0.00034246,4]
[314902313,1708625551764,-1397.23,0.00034246,4]
[314902314,1708625551773,-734.09,0.00034246,4]
[314902315,1708625551782,-500.0,0.00034246,4]
[314902316,1708625551793,-500.0,0.00034246,4]
[314902317,1708625551802,-638.64,0.00034246,4]
[314902318,1708625551813,-500.0,0.00034246,4]
[314902319,1708625551822,-1622.99,0.00034246,4]
[314902320,1708625551831,-2266.68,0.00034246,4]
[314902321,1708625551841,-500.0,0.00034246,4]
[314902322,1708625551851,-2464.49,0.00034246,4]
[314902323,1708625551860,-1572.14,0.00034246,4]
[314902324,1708625551870,-500.0,0.00034246,4]
[314902325,1708625551879,-1658.88,0.00034246,4]
[314902326,1708625551891,-1524.56,0.00034246,4]
[314902327,1708625551901,-802.87,0.00034246,4]
[314902328,1708625551911,-631.35,0.00034246,4]
[314902329,1708625551920,-500.0,0.00034246,4]
[314902330,1708625551931,-500.0,0.00034246,4]
[314902331,1708625551940,-795.52,0.00034246,4]
[314902332,1708625551950,-6459.32,0.00034246,4]
[314902333,1708625551959,-3708.97,0.00034246,4]
[314902334,1708625551971,-1063.1,0.00034246,4]
[314902335,1708625551982,-833.35,0.00034246,4]
[314902336,1708625551991,-8548.5,0.00034246,4]
[314902337,1708625552001,-619.16,0.00034246,4]
[314902338,1708625552011,-8589.16,0.00034246,4]
[314902339,1708625552020,-559.93,0.00034246,4]
[314902340,1708625552030,-725.96,0.00034246,4]
[314902341,1708625552039,-500.0,0.00034246,4]
[314902342,1708625552049,-885.04,0.00034246,4]
[314902343,1708625552058,-695.88,0.00034246,4]
[314902344,1708625552068,-1152.72,0.00034246,4]
[314902345,1708625552078,-1529.13,0.00034246,4]
[314902346,1708625552087,-3657.93,0.00034246,4]
[314902347,1708625552097,-1521.37,0.00034246,4]
[314902348,1708625552106,-500.0,0.00034246,4]
[314902349,1708625552116,-649.89,0.00034246,4]
[314902350,1708625552125,-1012.78,0.00034246,4]
[314902351,1708625552135,-500.0,0.00034246,4]
[314902352,1708625552144,-500.0,0.00034246,4]
[314902353,1708625552154,-982.4,0.00034246,4]
[314902354,1708625552164,-1281.51,0.00034246,4]
[314902355,1708625552173,-548.38,0.00034246,4]
[314902356,1708625552183,-757.3,0.00034246,4]
[314902357,1708625552193,-753.97,0.00034246,4]
[314902358,1708625552202,-2156.76,0.00034246,4]
[314902359,1708625552212,-2549.51,0.00034246,4]
[314902360,1708625552221,-2213.41,0.00034246,4]
[314902361,1708625552232,-500.0,0.00034246,4]
[314902362,1708625552241,-4381.7,0.00034246,4]
[314902363,1708625552251,-5006.44,0.00034246,4]
[314902364,1708625552260,-500.0,0.00034246,4]
[314902365,1708625552270,-500.0,0.00034246,4]
[314902366,1708625552279,-1083.67,0.00034246,4]
[314902367,1708625552289,-2631.91,0.00034246,4]
[314902368,1708625552299,-928.82,0.00034246,4]
[314902369,1708625552309,-1050.11,0.00034246,4]
[314902370,1708625552318,-988.3,0.00034246,4]
[314902371,1708625552328,-553.85,0.00034246,4]
[314902372,1708625552338,-1569.8,0.00034246,4]
[314902373,1708625552347,-1347.04,0.00034246,4]
[314902374,1708625552357,-1930.76,0.00034246,4]
[314902375,1708625552366,-1578.95,0.00034246,4]
[314902376,1708625552377,-654.06,0.00034246,4]
[314902377,1708625552386,-1152.52,0.00034246,4]
[314902378,1708625552397,-1562.64,0.00034246,4]
[314902379,1708625552408,-13046.67,0.00034246,4]
[314902380,1708625552419,-554.48,0.00034246,4]
[314902381,1708625552429,-490.13758639,0.00034246,4]
[314902382,1708625552439,-5718.46,0.00034246,4]
[314902383,1708625552449,-585.24,0.00034246,4]
[314902384,1708625552459,-4320.81,0.00034246,4]
[314902385,1708625552469,-1143.61,0.00034246,4]
[314902386,1708625552480,-3703.9,0.00034246,4]
[314902387,1708625552489,-500.0,0.00034246,4]
[314902388,1708625552499,-845.41,0.00034246,4]
[314902389,1708625552509,-1239.69,0.00034246,4]
[314902390,1708625552519,-500.0,0.00034246,4]
[314902391,1708625552529,-1082.3,0.00034246,4]
[314902392,1708625552538,-842.27,0.00034246,4]
[314902393,1708625552547,-968.09,0.00034246,4]
[314902394,1708625552557,-2562.83,0.00034246,4]
[314902395,1708625552567,-2763.17,0.00034246,4]
[314902396,1708625552576,-1672.02,0.00034246,4]
[314902397,1708625552586,-500.0,0.00034246,4]
[314902398,1708625552596,-850.13,0.00034246,4]
[314902399,1708625552605,-668.88,0.00034246,4]
[314902400,1708625552615,-1634.02,0.00034246,4]
[314902401,1708625552624,-500.0,0.00034246,4]
[314902402,1708625552634,-3311.96,0.00034246,4]
[314902403,1708625552644,-1279.14,0.00034246,4]
[314902404,1708625552654,-930.33,0.00034246,4]
[314902405,1708625552664,-2625.59,0.00034246,4]
[314902406,1708625552673,-619.14,0.00034246,4]